fUSD/lending_fUSD_20250514
["ID","MTS","AMOUNT","RATE_DAILY","PERIOD"]
[361107644,1747264244407,-400.0,0.00011177,2]
[361107645,1747264244418,-400.0,0.00011177,2]
[361107646,1747264244427,-400.0,0.00011177,2]
[361107647,1747264244437,-400.0,0.00011177,2]
[361107648,1747264244447,-400.0,0.00011177,2]
[361107649,1747264244456,-400.0,0.00011177,2]
[361107650,1747264244465,-470.57,0.00011177,2]
[361107651,1747264244474,-400.0,0.00011177,2]
[361107652,1747264244484,-418.39574863,0.00011177,2]
[361107653,1747264244493,-400.0,0.00011177,2]
[361107654,1747264244502,-400.0,0.00011177,2]
[361107655,1747264244512,-400.0,0.00011177,2]
[361107656,1747264244521,-400.0,0.00011177,2]
[361107657,1747264244532,-400.0,0.00011177,2]
[361107658,1747264244542,-400.0,0.00011177,2]
[361107659,1747264244552,-724.75,0.00011177,2]
[361107660,1747264244561,-514.8,0.00011177,2]
[361107661,1747264244571,-400.0,0.00011177,2]
[361107662,1747264244581,-534.29197332,0.00011177,2]
[361107663,1747264244590,-400.0,0.00011177,2]
[361107664,1747264244599,-400.0,0.00011177,2]
[361107665,1747264244609,-1542.16,0.00011177,2]
[361107666,1747264244619,-403.02675574,0.00011177,2]
[361107667,1747264244628,-400.0,0.00011177,2]
[361107668,1747264244638,-400.0,0.00011177,2]
[361107669,1747264244647,-400.0,0.00011177,2]
[361107670,1747264244657,-400.0,0.00011177,2]
[361107671,1747264244666,-426.08,0.00011177,2]
[361107672,1747264244676,-400.0,0.00011177,2]
[361107673,1747264244685,-400.0,0.00011177,2]
[361107674,1747264244695,-400.0,0.00011177,2]
[361107675,1747264244704,-400.0,0.00011177,2]
[361107676,1747264244713,-400.0,0.00011177,2]
[361107677,1747264244723,-400.0,0.00011177,2]
[361107678,1747264244733,-400.0,0.00011177,2]
[361107679,1747264244741,-400.0,0.00011177,2]
[361107680,1747264244751,-400.0,0.00011177,2]
[361107681,1747264244760,-400.0,0.00011177,2]
[361107682,1747264244770,-400.0,0.00011177,2]
[361107683,1747264244779,-400.0,0.00011177,2]
[361107684,1747264244789,-421.94503198,0.00011177,2]
[361107685,1747264244798,-400.0,0.00011177,2]
[361107686,1747264244808,-400.0,0.00011177,2]
[361107687,1747264244819,-400.0,0.00011177,2]
[361107688,1747264244828,-400.0,0.00011177,2]
[361107689,1747264244837,-400.0,0.00011177,2]
[361107690,1747264244846,-400.0,0.00011177,2]
[361107691,1747264244856,-400.0,0.00011177,2]
[361107692,1747264244865,-500.0,0.00011177,2]
[361107693,1747264244875,-500.0,0.00011177,2]
[361107694,1747264244884,-400.0,0.00011177,2]
[361107695,1747264244894,-400.0,0.00011177,2]
[361107696,1747264244903,-400.0,0.00011177,2]
[361107697,1747264244912,-400.0,0.00011177,2]
[361107698,1747264244922,-400.0,0.00011177,2]
[361107699,1747264244931,-400.0,0.00011177,2]
[361107700,1747264244941,-400.0,0.00011177,2]
[361107701,1747264244951,-400.0,0.00011177,2]
[361107702,1747264244960,-162.93294249,0.00011177,2]
[361107703,1747264244970,-400.0,0.00011177,2]
[361107704,1747264244980,-191.77522074,0.00011177,2]
[361107705,1747264244989,-400.0,0.00011177,2]
[361107706,1747264244999,-400.0,0.00011177,2]
[361107707,1747264245008,-400.0,0.00011177,2]
[361107708,1747264245018,-400.0,0.00011177,2]
[361107709,1747264245028,-400.0,0.00011177,2]
[361107710,1747264245038,-462.62263664,0.00011177,2]
[361107711,1747264245047,-400.0,0.00011177,2]
[361107712,1747264245057,-400.0,0.00011177,2]
[361107713,1747264245067,-400.0,0.00011177,2]
[361107714,1747264245077,-400.0,0.00011177,2]
[361107715,1747264245086,-241.05442539,0.00011177,2]
[361107716,1747264245096,-400.0,0.00011177,2]
[361107717,1747264245106,-400.0,0.00011177,2]
[361107718,1747264245115,-400.0,0.00011177,2]
[361107719,1747264245125,-400.0,0.00011177,2]
[361107720,1747264245134,-400.0,0.00011177,2]
[361107721,1747264245144,-400.0,0.00011177,2]
[361107722,1747264245154,-400.0,0.00011177,2]
[361107723,1747264245163,-400.0,0.00011177,2]
[361107724,1747264245172,-400.0,0.00011177,2]
[361107725,1747264245182,-214.97,0.00011177,2]
[361107726,1747264245191,-400.0,0.00011177,2]
[361107727,1747264245203,-400.0,0.00011177,2]
[361107728,1747264245213,-400.0,0.00011177,2]
[361107729,1747264245225,-400.0,0.00011177,2]
[361107730,1747264245234,-400.0,0.00011177,2]
[361107731,1747264245244,-400.0,0.00011177,2]
[361107732,1747264245253,-400.0,0.00011177,2]
[361107733,1747264245265,-400.0,0.00011177,2]
[361107734,1747264245275,-400.0,0.00011177,2]
[361107735,1747264245286,-400.0,0.00011177,2]
[361107736,1747264245296,-181.47039778,0.00011177,2]
[361107737,1747264245305,-357.04012463,0.00011177,2]
[361107738,1747264245315,-400.0,0.00011177,2]
[361107739,1747264245324,-400.0,0.00011177,2]
[361107740,1747264245333,-400.0,0.00011177,2]
[361107741,1747264245343,-400.0,0.00011177,2]
[361107742,1747264245353,-400.0,0.00011177,2]
[361107743,1747264245363,-400.0,0.00011177,2]
[361107744,1747264245372,-400.0,0.00011177,2]
[361107745,1747264245382,-400.0,0.00011177,2]
[361107746,1747264245392,-400.0,0.00011177,2]
[361107760,1747264245643,-400.0,0.00011177,2]
[361107761,1747264245654,-400.0,0.00011177,2]
[361107762,1747264245664,-502.92841314,0.00011177,2]
[361107763,1747264245674,-400.0,0.00011177,2]
[361107764,1747264245684,-259.24433577,0.00011177,2]
[361107765,1747264245693,-400.0,0.00011177,2]
[361107766,1747264245704,-400.0,0.00011177,2]
[361107767,1747264245714,-400.0,0.00011177,2]
[361107768,1747264245723,-186.57199035,0.00011177,2]
[361107769,1747264245733,-400.0,0.00011177,2]
[361107770,1747264245743,-196.53088596,0.00011177,2]
[361107771,1747264245752,-400.0,0.00011177,2]
[361107772,1747264245762,-477.58515554,0.00011177,2]
[361107773,1747264245771,-151.55344983,0.00011177,2]
[361107774,1747264245781,-400.0,0.00011177,2]
[361107775,1747264245790,-400.0,0.00011177,2]
[361107776,1747264245800,-400.0,0.00011177,2]
[361107777,1747264245810,-404.01478898,0.00011177,2]
[361107778,1747264245819,-400.0,0.00011177,2]
[361107779,1747264245828,-458.27377844,0.00011177,2]
[361107780,1747264245838,-400.0,0.00011177,2]
[361107781,1747264245847,-400.0,0.00011177,2]
[361107782,1747264245856,-400.0,0.00011177,2]
[361107783,1747264245865,-409.69,0.00011177,2]
[361107784,1747264245874,-400.0,0.00011177,2]
[361107785,1747264245884,-400.0,0.00011177,2]
[361107786,1747264245894,-153.89961934,0.00011177,2]
[361107787,1747264245904,-400.0,0.00011177,2]
[361107788,1747264245913,-400.0,0.00011177,2]
[361107789,1747264245923,-400.0,0.00011177,2]
[361107790,1747264245932,-500.0,0.00011177,2]
[361107791,1747264245941,-400.0,0.00011177,2]
[361107792,1747264245951,-561.38,0.00011177,2]
[361107793,1747264245961,-400.0,0.00011177,2]
[361107795,1747264245972,-400.0,0.00011177,2]
[361107797,1747264245981,-400.0,0.00011177,2]
[361107799,1747264245990,-400.0,0.00011177,2]
[361107801,1747264245999,-450.0,0.00011177,2]
[361107802,1747264246009,-400.0,0.00011177,2]
[361107804,1747264246018,-400.0,0.00011177,2]
[361107806,1747264246027,-400.0,0.00011177,2]
[361107807,1747264246036,-450.0,0.00011177,2]
[361107808,1747264246045,-400.0,0.00011177,2]
[361107809,1747264246054,-400.0,0.00011177,2]
[361107810,1747264246063,-400.0,0.00011177,2]
[361107811,1747264246073,-450.0,0.00011177,2]
[361107812,1747264246082,-400.0,0.00011177,2]
[361107813,1747264246092,-400.0,0.00011177,2]
[361107815,1747264246101,-400.0,0.00011177,2]
[361107816,1747264246111,-472.03830285,0.00011177,2]
[361107817,1747264246119,-400.0,0.00011177,2]
[361107818,1747264246128,-400.0,0.00011177,2]
[361107819,1747264246138,-483.14,0.00011177,2]
[361107820,1747264246147,-400.0,0.00011177,2]
[361107821,1747264246156,-400.0,0.00011177,2]
[361107822,1747264246165,-400.0,0.00011177,2]
[361107823,1747264246174,-400.0,0.00011177,2]
[361107824,1747264246184,-450.0,0.00011177,2]
[361107825,1747264246194,-400.0,0.00011177,2]
[361107826,1747264246203,-400.0,0.00011177,2]
[361107827,1747264246213,-450.0,0.00011177,2]
[361107828,1747264246222,-470.0,0.00011177,2]
[361107829,1747264246231,-400.0,0.00011177,2]
[361107830,1747264246240,-4060.63,0.00011177,2]
[361107831,1747264246251,-400.0,0.00011177,2]
[361107832,1747264246260,-1223.31,0.00011177,2]
[361107833,1747264246270,-450.0,0.00011177,2]
[361107834,1747264246279,-518.59807257,0.00011177,2]
[361107835,1747264246288,-400.0,0.00011177,2]
[361107836,1747264246297,-400.0,0.00011177,2]
[361107837,1747264246307,-400.0,0.00011177,2]
[361107838,1747264246316,-979.31,0.00011177,2]
[361107839,1747264246325,-400.0,0.00011177,2]
[361107840,1747264246335,-400.0,0.00011177,2]
[361107841,1747264246344,-400.0,0.00011177,2]
[361107842,1747264246354,-400.0,0.00011177,2]
[361107843,1747264246363,-1142.69,0.00011177,2]
[361107844,1747264246373,-400.0,0.00011177,2]
[361107845,1747264246382,-400.0,0.00011177,2]
[361107846,1747264246391,-400.0,0.00011177,2]
[361107847,1747264246401,-400.0,0.00011177,2]
[361107848,1747264246410,-470.0,0.00011177,2]
[361107849,1747264246420,-526.28847236,0.00011177,2]
[361107850,1747264246430,-686.05,0.00011177,2]
[361107851,1747264246439,-400.0,0.00011177,2]
[361107852,1747264246450,-450.0,0.00011177,2]
[361107853,1747264246460,-400.0,0.00011177,2]
[361107854,1747264246469,-748.6,0.00011177,2]
[361107855,1747264246479,-450.0,0.00011177,2]
[361107856,1747264246490,-417.26,0.00011177,2]
[361107857,1747264246499,-17752.639011,0.00011177,2]
[361107858,1747264246509,-1672.785287,0.00011177,2]
[361107859,1747264246519,-154.13641206,0.00011177,2]
[361107860,1747264246529,-450.0,0.00011177,2]
[361107861,1747264246543,-400.0,0.00011177,2]
[361107862,1747264246552,-400.0,0.00011177,2]
[361107863,1747264246562,-450.0,0.00011177,2]
[361107864,1747264246572,-1113.06,0.00011177,2]
[361107865,1747264246582,-250.27920839,0.00011177,2]
[361107866,1747264246591,-258.56900001,0.00011177,2]
[361107867,1747264246601,-450.0,0.00011177,2]
[361107868,1747264246610,-795.08,0.00011177,2]
[361107869,1747264246619,-363.00050792,0.00011177,2]
[361107870,1747264246628,-400.0,0.00011177,2]
[361107871,1747264246638,-400.0,0.00011177,2]
[361107872,1747264246648,-400.0,0.00011177,2]
[361107873,1747264246657,-400.0,0.00011177,2]
[361107874,1747264246667,-1333.23,0.00011177,2]
[361107875,1747264246677,-400.0,0.00011177,2]
[361107876,1747264246687,-400.0,0.00011177,2]
[361107877,1747264246697,-450.0,0.00011177,2]
[361107878,1747264246707,-2056.57,0.00011177,2]
[361107879,1747264246717,-694.96,0.00011177,2]
[361107880,1747264246726,-330.95448972,0.00011177,2]
[361107881,1747264246736,-500.0,0.00011177,2]
[361107882,1747264246745,-400.0,0.00011177,2]
[361107883,1747264246755,-500.0,0.00011177,2]
[361107884,1747264246765,-400.0,0.00011177,2]
[361107885,1747264246774,-915.71,0.00011177,2]
[361107886,1747264246784,-412.24,0.00011177,2]
[361107887,1747264246794,-400.0,0.00011177,2]
[361107888,1747264246803,-906.0,0.00011177,2]
[361107889,1747264246813,-400.0,0.00011177,2]
[361107890,1747264246822,-341.17764193,0.00011177,2]
[361107891,1747264246832,-400.0,0.00011177,2]
[361107892,1747264246842,-400.0,0.00011177,2]
[361107893,1747264246852,-920.87,0.00011177,2]
[361107894,1747264246861,-400.0,0.00011177,2]
[361107895,1747264246871,-1261.05,0.00011177,2]
[361107896,1747264246881,-400.0,0.00011177,2]
[361107897,1747264246890,-1187.04,0.00011177,2]
[361107898,1747264246900,-400.0,0.00011177,2]
[361107899,1747264246909,-450.0,0.00011177,2]
[361107900,1747264246919,-1289.05,0.00011177,2]
[361107901,1747264246928,-400.0,0.00011177,2]
[361107902,1747264246938,-400.0,0.00011177,2]
[361107903,1747264246949,-400.0,0.00011177,2]
[361107904,1747264246959,-2923.35,0.00011177,2]
[361107905,1747264246968,-400.0,0.00011177,2]
[361107906,1747264246978,-1022.61,0.00011177,2]
[361107907,1747264246988,-400.0,0.00011177,2]
[361107908,1747264246997,-400.0,0.00011177,2]
[361107909,1747264247007,-400.0,0.00011177,2]
[361107910,1747264247017,-711.84,0.00011177,2]
[361107911,1747264247026,-977.42,0.00011177,2]
[361107912,1747264247036,-400.0,0.00011177,2]
[361107913,1747264247046,-400.0,0.00011177,2]
[361107914,1747264247059,-890.2,0.00011177,2]
[361107915,1747264247069,-400.0,0.00011177,2]
[361107916,1747264247078,-400.0,0.00011177,2]
[361107917,1747264247088,-1350.79,0.00011177,2]
[361107918,1747264247097,-541.83,0.00011177,2]
[361107919,1747264247107,-400.0,0.00011177,2]
[361107920,1747264247116,-400.0,0.00011177,2]
[361107921,1747264247127,-5623.4,0.00011177,2]
[361107922,1747264247136,-1902.44,0.00011177,2]
[361107923,1747264247146,-400.0,0.00011177,2]
[361107924,1747264247155,-400.0,0.00011177,2]
[361107925,1747264247165,-400.0,0.00011177,2]
[361107926,1747264247175,-400.0,0.00011177,2]
[361107927,1747264247186,-400.0,0.00011177,2]
[361107928,1747264247196,-400.0,0.00011177,2]
[361107929,1747264247205,-400.0,0.00011177,2]
[361107930,1747264247216,-400.0,0.00011177,2]
[361107931,1747264247225,-400.0,0.00011177,2]
[361107932,1747264247235,-708.2,0.00011177,2]
[361107933,1747264247245,-5758.42,0.00011177,2]
[361107934,1747264247255,-400.0,0.00011177,2]
[361107935,1747264247265,-3168.59,0.00011177,2]
[361107936,1747264247274,-400.0,0.00011177,2]
[361107937,1747264247283,-11160.2,0.00011177,2]
[361107938,1747264247294,-450.0,0.00011177,2]
[361107939,1747264247304,-400.0,0.00011177,2]
[361107940,1747264247314,-400.0,0.00011177,2]
[361107941,1747264247323,-400.0,0.00011177,2]
[361107942,1747264247333,-2221.92,0.00011177,2]
[361107943,1747264247343,-400.0,0.00011177,2]
[361107944,1747264247353,-400.0,0.00011177,2]
[361107945,1747264247362,-869.38,0.00011177,2]
[361107946,1747264247371,-400.0,0.00011177,2]
[361107947,1747264247381,-400.0,0.00011177,2]
[361107948,1747264247391,-547.37,0.00011177,2]
[361107949,1747264247400,-400.0,0.00011177,2]
[361107950,1747264247410,-1582.57,0.00011177,2]
[361107951,1747264247420,-1327.27,0.00011177,2]
[361107952,1747264247431,-400.0,0.00011177,2]
[361107953,1747264247441,-400.0,0.00011177,2]
[361107954,1747264247451,-400.0,0.00011177,2]
[361107955,1747264247462,-674.11,0.00011177,2]
[361107956,1747264247471,-400.0,0.00011177,2]
[361107957,1747264247481,-217.34731259,0.00011177,2]
[361107958,1747264247491,-400.0,0.00011177,2]
[361107959,1747264247500,-400.0,0.00011177,2]
[361107960,1747264247510,-400.0,0.00011177,2]
[361107961,1747264247520,-400.0,0.00011177,2]
[361107962,1747264247533,-461.71456604,0.00011177,2]
[361107963,1747264247545,-400.0,0.00011177,2]
[361107964,1747264247555,-531.23,0.00011177,2]
[361107965,1747264247565,-589.15,0.00011177,2]
[361107966,1747264247575,-467.93,0.00011177,2]
[361107967,1747264247585,-3055.08,0.00011177,2]
[361107968,1747264247595,-400.0,0.00011177,2]
[361107969,1747264247604,-906.91,0.00011177,2]
[361107970,1747264247614,-891.28,0.00011177,2]
[361107971,1747264247625,-400.0,0.00011177,2]
[361107972,1747264247635,-400.0,0.00011177,2]
[361107973,1747264247644,-400.0,0.00011177,2]
[361107974,1747264247657,-400.0,0.00011177,2]
[361107975,1747264247667,-400.77,0.00011177,2]
[361107976,1747264247676,-400.0,0.00011177,2]
[361107977,1747264247686,-400.0,0.00011177,2]
[361107978,1747264247696,-1518.62,0.00011177,2]
[361107979,1747264247705,-1518.62,0.00011177,2]
[361107980,1747264247715,-400.0,0.00011177,2]
[361107981,1747264247725,-400.0,0.00011177,2]
[361107982,1747264247734,-157.79637,0.00011177,2]
[361107983,1747264247744,-400.0,0.00011177,2]
[361107984,1747264247754,-400.0,0.00011177,2]
[361107985,1747264247763,-168.492818,0.00011177,2]
[361107986,1747264247772,-501.77,0.00011177,2]
[361107987,1747264247782,-400.0,0.00011177,2]
[361107988,1747264247791,-983.55,0.00011177,2]
[361107989,1747264247800,-400.0,0.00011177,2]
[361107990,1747264247809,-400.0,0.00011177,2]
[361107991,1747264247819,-588.18,0.00011177,2]
[361107992,1747264247828,-400.0,0.00011177,2]
[361107993,1747264247837,-2072.02,0.00011177,2]
[361107994,1747264247846,-400.0,0.00011177,2]
[361107995,1747264247855,-150.0,0.00011177,2]
[361107996,1747264247864,-150.0,0.00011177,2]
[361107997,1747264247874,-3903.54,0.00011177,2]
[361107998,1747264247883,-400.0,0.00011177,2]
[361107999,1747264247892,-400.0,0.00011177,2]
[361108000,1747264247901,-400.0,0.00011177,2]
[361108001,1747264247910,-400.0,0.00011177,2]
[361108002,1747264247920,-1202.41,0.00011177,2]
[361108003,1747264247930,-400.0,0.00011177,2]
[361108004,1747264247940,-400.0,0.00011177,2]
[361108005,1747264247951,-980.88,0.00011177,2]
[361108006,1747264247961,-400.0,0.00011177,2]
[361108007,1747264247970,-400.0,0.00011177,2]
[361108008,1747264247980,-400.73,0.00011177,2]
[361108009,1747264247989,-5749.86,0.00011177,2]
[361108010,1747264247999,-400.0,0.00011177,2]
[361108011,1747264248008,-400.0,0.00011177,2]
[361108012,1747264248017,-445.36,0.00011177,2]
[361108013,1747264248027,-498.76,0.00011177,2]
[361108014,1747264248036,-400.0,0.00011177,2]
[361108015,1747264248045,-400.0,0.00011177,2]
[361108016,1747264248055,-599.43,0.00011177,2]
[361108017,1747264248065,-400.0,0.00011177,2]
[361108018,1747264248074,-20037.7,0.00011177,2]
[361108019,1747264248084,-805.12,0.00011177,2]
[361108020,1747264248094,-1349.87,0.00011177,2]
[361108021,1747264248103,-400.0,0.00011177,2]
[361108022,1747264248113,-500.0,0.00011177,2]
[361108023,1747264248122,-500.0,0.00011177,2]
[361108024,1747264248132,-434.42,0.00011177,2]
[361108025,1747264248141,-892.69,0.00011177,2]
[361108026,1747264248150,-1683.5,0.00011177,2]
[361108027,1747264248159,-437.47,0.00011177,2]
[361108028,1747264248169,-593.48,0.00011177,2]
[361108029,1747264248178,-639.24,0.00011177,2]
[361108030,1747264248187,-5740.66,0.00011177,2]
[361108031,1747264248197,-65970.0,0.00011177,2]
[361108032,1747264248207,-400.0,0.00011177,2]
[361108033,1747264248216,-527.29,0.00011177,2]
[361108034,1747264248226,-1000.0,0.00011177,2]
[361108035,1747264248236,-400.0,0.00011177,2]
[361108036,1747264248245,-400.0,0.00011177,2]
[361108037,1747264248255,-400.0,0.00011177,2]
[361108038,1747264248265,-11054.36,0.00011177,2]
[361108039,1747264248274,-1094.62,0.00011177,2]
[361108040,1747264248283,-400.0,0.00011177,2]
[361108041,1747264248292,-400.0,0.00011177,2]
[361108042,1747264248301,-400.0,0.00011177,2]
[361108043,1747264248311,-400.0,0.00011177,2]
[361108044,1747264248320,-400.0,0.00011177,2]
[361108045,1747264248329,-492.15,0.00011177,2]
[361108046,1747264248339,-400.0,0.00011177,2]
[361108047,1747264248348,-338.22754809,0.00011177,2]
[361108048,1747264248357,-459.17,0.00011177,2]
[361108049,1747264248367,-400.0,0.00011177,2]
[361108050,1747264248376,-400.0,0.00011177,2]
[361108051,1747264248386,-400.0,0.00011177,2]
[361108052,1747264248395,-2539.0,0.00011177,2]
[361108053,1747264248405,-642.94,0.00011177,2]
[361108054,1747264248414,-400.0,0.00011177,2]
[361108055,1747264248424,-400.0,0.00011177,2]
[361108056,1747264248434,-400.0,0.00011177,2]
[361108057,1747264248444,-400.0,0.00011177,2]
[361108058,1747264248454,-400.0,0.00011177,2]
[361108059,1747264248464,-400.0,0.00011177,2]
[361108060,1747264248474,-2633.62,0.00011177,2]
[361108061,1747264248483,-400.0,0.00011177,2]
[361108062,1747264248493,-1818.85,0.00011177,2]
[361108063,1747264248503,-400.0,0.00011177,2]
[361108064,1747264248513,-500.0,0.00011177,2]
[361108065,1747264248523,-500.0,0.00011177,2]
[361108066,1747264248536,-400.0,0.00011177,2]
[361108067,1747264248556,-400.0,0.00011177,2]
[361108068,1747264248568,-400.0,0.00011177,2]
[361108069,1747264248578,-2188.1,0.00011177,2]
[361108070,1747264248587,-400.0,0.00011177,2]
[361108071,1747264248597,-560.77,0.00011177,2]
[361108072,1747264248607,-467.74,0.00011177,2]
[361108073,1747264248616,-831.49,0.00011177,2]
[361108074,1747264248626,-750.29,0.00011177,2]
[361108075,1747264248636,-1172.14,0.00011177,2]
[361108076,1747264248645,-400.0,0.00011177,2]
[361108077,1747264248655,-571.17,0.00011177,2]
[361108078,1747264248664,-400.0,0.00011178,2]
[361108079,1747264248674,-400.0,0.00011178,2]
[361108080,1747264248683,-400.0,0.00011178,2]
[361108081,1747264248693,-400.0,0.00011178,2]
[361108082,1747264248703,-400.0,0.00011178,2]
[361108083,1747264248713,-400.0,0.00011178,2]
[361108084,1747264248723,-400.0,0.00011178,2]
[361108085,1747264248732,-400.0,0.00011178,2]
[361108086,1747264248742,-400.0,0.00011178,2]
[361108087,1747264248751,-400.0,0.00011178,2]
[361108088,1747264248761,-400.0,0.00011178,2]
[361108089,1747264248770,-344.57325359,0.00011178,2]
[361108090,1747264248780,-500.0,0.00011178,2]
[361108091,1747264248790,-500.0,0.00011178,2]
[361108092,1747264248800,-269.83263495,0.00011178,2]
[361108093,1747264248810,-400.0,0.00011178,2]
[361108094,1747264248819,-400.0,0.00011178,2]
[361108095,1747264248829,-400.0,0.00011178,2]
[361108096,1747264248839,-400.0,0.00011178,2]
[361108097,1747264248848,-400.0,0.00011178,2]
[361108098,1747264248858,-703.02,0.00011178,2]
[361108099,1747264248868,-400.0,0.00011178,2]
[361108100,1747264248877,-400.0,0.00011178,2]
[361108101,1747264248887,-400.0,0.00011178,2]
[361108102,1747264248896,-400.0,0.00011178,2]
[361108103,1747264248905,-400.0,0.00011178,2]
[361108104,1747264248915,-538.13,0.00011178,2]
[361108105,1747264248924,-400.0,0.00011178,2]
[361108106,1747264248933,-768.77,0.00011178,2]
[361108107,1747264248942,-400.0,0.00011178,2]
[361108108,1747264248951,-400.0,0.00011178,2]
[361108109,1747264248961,-402.6331225,0.00011178,2]
[361108110,1747264248970,-400.0,0.00011178,2]
[361108111,1747264248980,-400.0,0.00011178,2]
[361108112,1747264248989,-400.0,0.00011178,2]
[361108113,1747264248998,-400.0,0.00011178,2]
[361108114,1747264249008,-398.0304544,0.00011178,2]
[361108115,1747264249017,-400.0,0.00011178,2]
[361108116,1747264249028,-400.0,0.00011178,2]
[361108117,1747264249037,-400.0,0.00011178,2]
[361108118,1747264249047,-400.0,0.00011178,2]
[361108119,1747264249056,-400.0,0.00011178,2]
[361108120,1747264249066,-400.0,0.00011178,2]
[361108121,1747264249075,-400.0,0.00011178,2]
[361108122,1747264249084,-400.0,0.00011178,2]
[361108123,1747264249094,-400.0,0.00011178,2]
[361108124,1747264249104,-405.87728089,0.00011178,2]
[361108125,1747264249114,-450.0,0.00011178,2]
[361108126,1747264249123,-400.0,0.00011178,2]
[361108127,1747264249133,-400.0,0.00011178,2]
[361108128,1747264249142,-400.0,0.00011178,2]
[361108129,1747264249152,-403.35513461,0.00011178,2]
[361108130,1747264249161,-400.0,0.00011178,2]
[361108131,1747264249170,-400.0,0.00011178,2]
[361108132,1747264249180,-400.0,0.00011178,2]
[361108133,1747264249191,-400.0,0.00011178,2]
[361108134,1747264249201,-400.0,0.00011178,2]
[361108135,1747264249211,-400.0,0.00011178,2]
[361108136,1747264249221,-400.0,0.00011178,2]
[361108137,1747264249231,-400.0,0.00011178,2]
[361108138,1747264249241,-547.7171057,0.00011178,2]
[361108139,1747264249251,-400.0,0.00011178,2]
[361108140,1747264249261,-450.0,0.00011178,2]
[361108141,1747264249271,-400.0,0.00011178,2]
[361108142,1747264249281,-450.0,0.00011178,2]
[361108143,1747264249291,-400.0,0.00011178,2]
[361108144,1747264249301,-400.0,0.00011178,2]
[361108145,1747264249311,-400.0,0.00011178,2]
[361108146,1747264249320,-425.54,0.00011178,2]
[361108147,1747264249330,-400.0,0.00011178,2]
[361108148,1747264249340,-381.72572802,0.00011178,2]
[361108149,1747264249349,-400.0,0.00011178,2]
[361108150,1747264249358,-400.0,0.00011178,2]
[361108151,1747264249368,-450.0,0.00011178,2]
[361108152,1747264249378,-400.0,0.00011178,2]
[361108153,1747264249387,-450.0,0.00011178,2]
[361108154,1747264249397,-400.0,0.00011178,2]
[361108155,1747264249407,-450.0,0.00011178,2]
[361108156,1747264249416,-400.0,0.00011178,2]
[361108157,1747264249426,-450.0,0.00011178,2]
[361108158,1747264249436,-400.0,0.00011178,2]
[361108159,1747264249446,-400.0,0.00011178,2]
[361108160,1747264249455,-400.0,0.00011178,2]
[361108161,1747264249465,-902.52,0.00011178,2]
[361108162,1747264249474,-400.0,0.00011178,2]
[361108163,1747264249484,-400.0,0.00011178,2]